Cogmind - Beta 13 @@@ ROGUE MODE // 2024.06.13 @ 14:53:18 Player: QXander Result: Destroyed by G-47 Trooper with Particle Gun Performance ------------- Evolutions (2) 1000 Regions Visited (5) 1000 Robots Destroyed (17) 85 Value Destroyed (275) 275 Prototype IDs (23) 460 Alien Tech Used (0) 0 Bonus (307) 307 TOTAL SCORE: 3127 Bonus ------- Follower Combat Kills 7 Aligned with FarCom 300 Cogmind --------- Core Integrity 0/550 Matter 300/300 Energy 99/100 System Corruption 1% Temperature Cool (9) Movement Core (50) Location -8/Materials Parts ------- > --- POWER (2) -------- (None) > --- PROPULSION (3) --- (None) > --- UTILITY (4) ------ (None) > --- WEAPON (2) ------- (None) > --- INVENTORY (5) ---- Medium Matter Pod (11) Peak State ------------ > --- POWER ------------ (None) > --- PROPULSION ------- Flight Unit > --- UTILITY ---------- Superbattery Weight Redist. System Improved Targeting Computer Improved Light Armor Plating > --- WEAPON ----------- Particle Gun Mining Laser > --- INVENTORY -------- Medium Matter Pod [Rating: 21] Favorites ----------- Power Light Ion Engine Engine Light Ion Engine Propulsion VTOL Module Treads Light Treads Wheel Wheel Flight Unit VTOL Module Utility Salvage Targeting Computer Device Weight Redist. System Storage Medium Matter Pod Processor Salvage Targeting Computer Protection Improved Light Armor Plating Weapon Light Assault Rifle Energy Gun Particle Gun Ballistic Gun Light Assault Rifle Ballistic Cannon Assault Cannon Special Weapon Mining Laser Build | -11 -10 -10 -10 -9 -8 ------- Run | Yrd Mat Min Exi Min Mat Slots Evolved 4 | . . . . . 4 Power 1 | . . . . . 1 Propulsion 1 | . . . . . 1 Utility 2 | . . . . . 2 Weapon . | . . . . . . Parts Attached 49 | 6 18 3 . 8 14 Power 5 | 1 2 . . 1 1 Engine 5 | 1 2 . . 1 1 Core . | . . . . . . Reactor . | . . . . . . Propulsion 15 | 2 8 2 . 2 1 Treads 2 | . 2 . . . . Leg . | . . . . . . Wheel 6 | 2 4 . . . . Hover . | . . . . . . Flight 7 | . 2 2 . 2 1 Utility 11 | 1 5 . . . 5 Device 2 | . . . . . 2 Storage 6 | 1 4 . . . 1 Processor 2 | . 1 . . . 1 Hackware . | . . . . . . Protection 1 | . . . . . 1 Artifact . | . . . . . . Weapon 18 | 2 3 1 . 5 7 Energy Gun 2 | . . . . . 2 Energy Cannon . | . . . . . . Ballistic Gun 13 | 2 3 1 . 4 3 Ballistic Cannon 1 | . . . . . 1 Launcher . | . . . . . . Special Weapon 2 | . . . . 1 1 Impact Weapon . | . . . . . . Slashing Weapon . | . . . . . . Piercing Weapon . | . . . . . . Special Melee Weapon . | . . . . . . Unidentified Prototypes . | . . . . . . Parts Lost 12 | . 1 . . . 11 Power 1 | . . . . . 1 Propulsion 4 | . 1 . . . 3 Utility 3 | . . . . . 3 Weapon 4 | . . . . . 4 Highest Loss Streak 11 | . 1 . . . 11 To Critical Strikes . | . . . . . . Average Slot Usage (%) 83 | . 90 87 85 100 61 Engine 12 | . 14 14 14 14 6 Wheel 8 | . 26 . . . . Flight 16 | . . 28 28 28 17 Storage 11 | . 10 14 14 14 6 Processor 11 | . 9 14 14 14 10 Ballistic Gun 19 | . 28 16 14 21 12 Naked Turns 1 | . . . . . 1 Heaviest Build 17 | 11 17 8 8 8 10 Greatest Support 20 | 20 20 8 8 8 18 Greatest Overweight (x) 1 | . 1 . . . 1 Average Overweight (x) . | . . . . . . Largest Inventory Capacity 15 | 8 15 5 5 5 5 Average Capacity 5 | 7 7 5 5 5 5 Most Carried 9 | 3 9 5 5 5 5 Average Carried 4 | 1 4 4 4 3 3 Final Capacity 8 | 8 5 5 5 5 5 Final Carried 5 | 3 4 5 4 4 1 Class Distribution -------------------- 43% | Sprinter 40% | Mutant 16% | Scavenger-Mutant Dominant Class ---------------- Mutant | -10/Materials Sprinter | -10/Mines Sprinter | -10/Exiles Sprinter | -9/Mines Scavenger-Mutant | -8/Materials Resources | -11 -10 -10 -10 -9 -8 ----------- Run | Yrd Mat Min Exi Min Mat Matter Collected 804 | 182 191 43 50 175 163 Remotely . | . . . . . . Salvage Created 383 | . 191 . . 89 103 Parts 38 | . 21 . . 10 7 Haulers Intercepted . | . . . . . . Recyclers Shooed . | . . . . . . Parts Field Recycled . | . . . . . . Retrieved Matter . | . . . . . . Parts Self-Destructed . | . . . . . . Prevented . | . . . . . . Kills | -11 -10 -10 -10 -9 -8 ------- Run | Yrd Mat Min Exi Min Mat Combat Hostiles Destroyed 17 | . 8 . . 5 4 Guns 17 | . 8 . . 5 4 Classes Destroyed 2 | . 2 . . . . Swarmer 14 | . 6 . . 5 3 Grunt 3 | . 2 . . . 1 Best Kill Streak 3 | . 3 . . 3 3 Combat Bots Only 3 | . 3 . . 3 3 Max Kills in Single Turn 1 | . 1 . . 1 1 Gunslinging . | . . . . . . Exploded . | . . . . . . Melee . | . . . . . . Uniques/NPCs Destroyed . | . . . . . . Combat | -11 -10 -10 -10 -9 -8 -------- Run | Yrd Mat Min Exi Min Mat Hostile Shots Fired 170 | . 50 1 . 17 102 Missed 52 | . 17 1 . 4 30 Damage Taken 1547 | . 264 . . 123 1160 Core 627 | . 40 . . 27 560 Absorbed by Shields . | . . . . . . Core Remaining (%) 86 | 100 . . . 73 . Volleys Fired 74 | . 25 1 . 18 30 Largest 2 | . 2 1 . 2 2 Hottest 165 | . 40 20 . 120 165 Shots Fired 139 | . 50 1 . 30 58 Gun 131 | . 50 1 . 23 57 Cannon . | . . . . . . Launcher . | . . . . . . Special 8 | . . . . 7 1 Kinetic 117 | . 50 1 . 23 43 Thermal 22 | . . . . 7 15 Explosive . | . . . . . . Electromagnetic . | . . . . . . Robot Hit Streak 10 | . 10 . . 2 7 Robot Miss Streak 9 | . 5 . . 4 9 Penetration Max . | . . . . . . Secondary Targets 3 | . . . . 1 2 Max Gunslinging Chain 1 | . . . . 1 1 Shots Hit Robots 69 | . 23 . . 13 33 Core Hits 33 | . 15 . . 5 13 Critical Kills . | . . . . . . Critical Parts Destroyed . | . . . . . . Critical Strikes 2 | . . . . . 2 Burn 2 | . . . . . 2 Melee Attacks . | . . . . . . Impact . | . . . . . . Slashing . | . . . . . . Piercing . | . . . . . . Sneak Attacks . | . . . . . . Combat Hostiles . | . . . . . . Follow-up Attacks . | . . . . . . Damage Inflicted 813 | . 244 . . 162 407 Guns 747 | . 238 . . 102 407 Cannons . | . . . . . . Explosions . | . . . . . . Melee . | . . . . . . Ramming 18 | . 6 . . 12 . Kinetic 569 | . 238 . . 102 229 Thermal 226 | . . . . 48 178 Explosive . | . . . . . . Electromagnetic . | . . . . . . Impact . | . . . . . . Slashing . | . . . . . . Piercing . | . . . . . . Highest Corruption 1 | . . . . . 1 Average Corruption 1 | . . . . . 1 Corruption Purged . | . . . . . . Corruption Blocked . | . . . . . . Overload Shots . | . . . . . . Overflow Damage 4 | . . . . 4 . Projectiles 4 | . . . . 4 . Explosions . | . . . . . . Melee . | . . . . . . Knockbacks . | . . . . . . Impact . | . . . . . . Kinetic . | . . . . . . Secondary . | . . . . . . Self-Inflicted Damage 15 | . 3 . . 12 . Shots . | . . . . . . Rammed 1 | . 1 . . . . Targets Rammed 1 | . 1 . . . . Kicked . | . . . . . . Crushed . | . . . . . . Highest Temperature 387 | . 12 4 . 70 387 Average Temperature 104 | . 9 4 . 23 192 Received Heat Transfer 603 | . 18 . . . 585 Effects 2 | . . . . . 2 Interference 1 | . . . . . 1 Damage (minor) 1 | . . . . . 1 Siege Activations . | . . . . . . Robots Corrupted . | . . . . . . Combat Hostiles . | . . . . . . Parts Fried . | . . . . . . Impact Corruptions . | . . . . . . Robots Melted . | . . . . . . Combat Hostiles . | . . . . . . Parts Melted . | . . . . . . Heat Transferred 655 | . . . . 100 555 Parts Sabotaged . | . . . . . . Parts Stolen . | . . . . . . Parts Stripped . | . . . . . . Power Chain Reactions . | . . . . . . Alert | -11 -10 -10 -10 -9 -8 ------- Run | Yrd Mat Min Exi Min Mat Peak Influence 256 | . 256 21 . 132 193 Initial 51 | . . 21 . . 51 Average 94 | . 110 21 . 72 141 Maximum Alert Level 1 | . 1 . . . . Low Security (%) 95 | 100 90 100 . 100 100 Level 1 4 | . 9 . . . . Level 2 . | . . . . . . Level 3 . | . . . . . . Level 4 . | . . . . . . Level 5 . | . . . . . . High Security . | . . . . . . Max Security . | . . . . . . Squads Dispatched 3 | . 1 . . . 2 Investigation . | . . . . . . Extermination . | . . . . . . Reinforcement 3 | . 1 . . . 2 Assault . | . . . . . . Garrison . | . . . . . . Intercept . | . . . . . . Searches Triggered . | . . . . . . Construction Impeded . | . . . . . . Haulers Reinforced . | . . . . . . Active Scanning Responses . | . . . . . . Cargo Convoy Interrupts . | . . . . . . Stealth | -11 -10 -10 -10 -9 -8 --------- Run | Yrd Mat Min Exi Min Mat Distress Signals 2 | . . . . . 2 Communications Jammed . | . . . . . . Distress Signals . | . . . . . . Times Spotted 45 | . 17 3 . 7 18 Peak Tracking Total 9 | . 7 3 . 4 9 Tactical Retreats 2 | . 1 . . . 1 Traps | -11 -10 -10 -10 -9 -8 ------- Run | Yrd Mat Min Exi Min Mat Traps Triggered . | . . . . . . Indirectly . | . . . . . . Trap Hack Attempts . | . . . . . . Triggered . | . . . . . . Disarmed . | . . . . . . Reprogrammed . | . . . . . . Reused . | . . . . . . Traps Extracted . | . . . . . . Installed . | . . . . . . Triggered . | . . . . . . Machines | -11 -10 -10 -10 -9 -8 ---------- Run | Yrd Mat Min Exi Min Mat Machines Disabled 2 | . . . . 1 1 Max in Single Turn 1 | . . . . 1 1 Machines Repaired . | . . . . . . Machines Dismantled . | . . . . . . Machines Sabotaged . | . . . . . . Overloaded Fab Kills . | . . . . . . Hacking | -11 -10 -10 -10 -9 -8 --------- Run | Yrd Mat Min Exi Min Mat Machines Accessed 10 | . 3 . 5 . 2 Terminals 4 | . 3 . . . 1 Fabricators . | . . . . . . Repair Stations 1 | . . . . . 1 Recycling Units . | . . . . . . Scanalyzers . | . . . . . . Garrison Access . | . . . . . . Total Hacks 65 | . 10 . 50 . 5 Successful 56 | . 5 . 50 . 1 Failed 9 | . 5 . . . 4 Catastrophic 1 | . 1 . . . . Database Lockouts . | . . . . . . Manual 5 | . 3 . 2 . . Terminals 12 | . 10 . . . 2 Fabricators . | . . . . . . Repair Stations 3 | . . . . . 3 Recycling Units . | . . . . . . Scanalyzers . | . . . . . . Garrison Access . | . . . . . . Terminal Hacks 55 | . 5 . 50 . . Record 52 | . 3 . 49 . . Locate Traps 1 | . 1 . . . . Patrol Status 1 | . 1 . . . . Derelict Proto ID Bank 1 | . . . 1 . . Fabricator Hacks . | . . . . . . Repair Station Hacks 1 | . . . . . 1 Scan Component 1 | . . . . . 1 Recycling Unit Hacks . | . . . . . . Scanalyzer . | . . . . . . Garrison Access Hacks . | . . . . . . Unauthorized Hacks . | . . . . . . Terminals . | . . . . . . Fabricators . | . . . . . . Repair Stations . | . . . . . . Recycling Units . | . . . . . . Scanalyzers . | . . . . . . Garrison Access . | . . . . . . Data Cores Recovered . | . . . . . . Used . | . . . . . . Hacking Detections 4 | . 2 . . . 2 Full Trace Events . | . . . . . . Feedback Events . | . . . . . . Feedback Blocked . | . . . . . . Robot Schematics Acquired . | . . . . . . Robots Built . | . . . . . . Authchips . | . . . . . . Time . | . . . . . . Total Robot Build Rating . | . . . . . . Part Schematics Acquired . | . . . . . . Parts Built . | . . . . . . Authchips . | . . . . . . Time . | . . . . . . Total Part Build Rating . | . . . . . . Parts Repaired . | . . . . . . Time . | . . . . . . Parts Recycled . | . . . . . . Recycled Matter . | . . . . . . Retrieved Matter . | . . . . . . Retrieved Components . | . . . . . . Parts Scanalyzed . | . . . . . . Part Schematics Acquired . | . . . . . . Parts Damaged . | . . . . . . Bothacking | -11 -10 -10 -10 -9 -8 ------------ Run | Yrd Mat Min Exi Min Mat Used RIF Installer . | . . . . . . Robots Hacked . | . . . . . . Non-combat . | . . . . . . Combat . | . . . . . . Robot Hacks Applied . | . . . . . . Relay Couplers Released . | . . . . . . Fabnet Peak Effective % . | . . . . . . Robots Rewired . | . . . . . . Allies Hacked . | . . . . . . Hacks Repelled . | . . . . . . Allies | -11 -10 -10 -10 -9 -8 -------- Run | Yrd Mat Min Exi Min Mat Total Allies 1 | . . . . 1 . Largest Group 1 | . . . . 1 . Highest-Rated Group 31 | . . . . 31 . Highest-Rated Ally 31 | . . . . 31 . Total Orders . | . . . . . . Ally Attacks 5 | . . . . 5 . Total Damage 44 | . . . . 44 . Kills 1 | . . . . 1 . Allies Corrupted . | . . . . . . Allies Melted . | . . . . . . Intel | -11 -10 -10 -10 -9 -8 ------- Run | Yrd Mat Min Exi Min Mat Robot Analysis Total . | . . . . . . Derelict Logs Recovered . | . . . . . . Drone Launches . | . . . . . . Drone Recoveries . | . . . . . . Exploration | -11 -10 -10 -10 -9 -8 ------------- Run | Yrd Mat Min Exi Min Mat Turns Passed 1409 | 112 428 66 363 170 270 Spaces Moved 2341 | 125 379 183 1127 278 249 Core 36 | 9 . . . . 27 Treads . | . . . . . . Legs . | . . . . . . Wheels 495 | 116 379 . . . . Hover . | . . . . . . Flight 1810 | . . 183 1127 278 222 Fastest Speed 32 | 50 80 32 32 32 34 Average Speed 43 | 77 80 32 32 33 42 Slowest Speed 100 | 80 95 32 32 37 100 Overloaded Moves . | . . . . . . Propulsion Burnouts . | . . . . . . Robots Hopped 3 | . . . . 2 1 Cave-ins Triggered . | . . . . . . Exploration Rate (%) 35 | 4 40 35 94 28 13 Regions Visited 5 Branch Regions 3 Pre-discovered Areas 2 | . . 1 1 . . Known Exits Taken . | . . . . . . Unknown Exits Taken 5 | 1 1 1 1 1 . Scrap Searched 1 | . . 1 . . . Spaces Dug 2 | . . . . 2 . Terrain Destroyed 4 | . . . . 4 . Melee . | . . . . . . Projectile 4 | . . . . 4 . AOE . | . . . . . . Terrain Rammed 1 | . . . . 1 . Walls Destroyed . | . . . . . . Machines Disabled . | . . . . . . Actions | -11 -10 -10 -10 -9 -8 --------- Run | Yrd Mat Min Exi Min Mat Total 2613 | 139 475 190 1129 316 364 Wait 49 | . . . . . 49 Move 2331 | 124 378 182 1126 274 247 Hop 2 | . . . . 1 1 Pick Up 48 | 9 21 1 1 6 10 Fast Attach . | . . . . . . Attach 46 | 6 16 3 . 7 14 Detach 25 | . 13 3 . 3 6 Swap 3 | . 2 . . 1 . Drop 33 | . 19 . 2 5 7 Fire 74 | . 25 1 . 18 30 Melee . | . . . . . . Ram 2 | . 1 . . 1 . Kick . | . . . . . . Crush . | . . . . . . Escape Stasis . | . . . . . . Rewire . | . . . . . . Trap . | . . . . . . Miscellaneous . | . . . . . . Route ------- -11/Scrapyard -10/Materials -10/Mines -10/Exiles (discovered 2 exits: [*Min x2]) -9/Mines -8/Materials History --------- Turn | Location | Event 7 | -11/Scrapyard | Discovered new exit (range 15) 113 | -11/Scrapyard | Entered Materials 309 | -10/Materials | Build established: Mutant 458 | -10/Materials | Discovered new exit (range 12) 541 | -10/Materials | Entered Mines 564 | -10/Mines | Learned location of Storage (-9) 590 | -10/Mines | Deemed a non-threat by the Exiles lab entrance 590 | -10/Mines | Discovered new exit (range 5) 607 | -10/Mines | Entered Exiles 615 | -10/Exiles | Discovered new exit (range 15) 630 | -10/Exiles | Met 8R-AWN 641 | -10/Exiles | Met EX-HEX 666 | -10/Exiles | Met EX-DEC 674 | -10/Exiles | Learned location of Zion (-7) 692 | -10/Exiles | Discovered new exit (range 11) 727 | -10/Exiles | Visited The Gauntlet 777 | -10/Exiles | Met EX-BIN 792 | -10/Exiles | Aligned with FarCom system 792 | -10/Exiles | Given EX-Vault access code 819 | -10/Exiles | Build established: Sprinter 898 | -10/Exiles | Opened EX-Vault 921 | -10/Exiles | Found Superbattery 938 | -10/Exiles | Warned to stay clear of 0b10 Research branches 970 | -10/Exiles | Left Exiles lab with Superbattery 970 | -10/Exiles | Entered Mines 1015 | -9/Mines | Received a Mining Laser from a helpful Derelict 1121 | -9/Mines | Discovered new exit (range 9) 1140 | -9/Mines | Entered Materials 1140 | -8/Materials | Evolved 4 slots: Power x1, Propulsion x1, Utility x2 1399 | -8/Materials | Core integrity fell below 50% 1409 | -8/Materials | Core integrity fell below 20% 1410 | -8/Materials | Destroyed by G-47 Trooper with Particle Gun Last Messages --------------- Extracted 89 energy. Acquired Superbattery. Lgt. Assault Rifle destroyed. Assault Rifle destroyed. Imp. Targeting Computer destroyed. R-06 Scavenger collects Imp. Heat Sink. Mining Laser destroyed. Imp. Light Armor Plating destroyed. R-06 Scavenger collects Lgt. Ion Engine. Particle Gun destroyed. Flight Unit destroyed. System corrupted by crushing effect (+1). Weight Redist. System destroyed. R-06 Scavenger collects Wheel. Acquired 87 matter. ALERT: Suspicious intruders detected, dispatching Cutter reinforcements to area. Knocked back. Critical hit (Burn: +37). Superbattery severed. Map ----- +----------------------------------------------------+ | ??###################### """"" """????????????? | | ????????????????# # """"" """ ????????? | | ????????????????# # ??????? | | ????????????????# + ??????? | | ????????????????# """ # ###########+#?????????? | | ????????????????# """ # #?????????????????????? | | ????????????????# """ # #?????????????????????? | | ??????????????########## #?????????????????????? | | ??????????????# # #?????????????????????? | | ??????????????# # #?????????????????????? | | ??????????????# ! " "+ #?????????????????????? | | ??????????????# "" # #?????????????????????? | | ??????????????# """ #g g#?????????????????????? | | ??????????????# "" # g #?????????????????????? | | ??????????????# "" %%# #?????????????????????? | | ??????????????# % =# #??#####??????????????? | | ??????????????# ! # #?? #??????????????? | | ??????????????########## #? #??????????????? | | ???????????????????????# #?[[ #??????????????? | | ???????????????????????# b#[[ #??????????????? | | ??????????????????????## #[[ ???????????????? | | ??????????????????????# ?Y????????????????? | | ???????????#####+####### ##+##### #???????????? | | ???????? c!c k#???????????? | | ???????? #???????????? | | ???????? g g @ a #???????????? | | ??????????########## ### ####### #???????????? | | ???????????????????# ??? ????????#???????????? | | ???????????????????# ???"""" ??????????????????? | | ???????????????????+ ???"T"" #?????????????????? | | ???????????????????# ???? #?????????????????? | | ???????????????????# ???? #?????????????????? | | ???????????????????# ?????#####???Y?????????????? | | ???????????????????##/???????????????????????????? | | ???????????????????? ????????????????????????????? | | ???????????????????? ????????????????????????????? | | ????????????????????"????????????????????????????? | | ????????????????????"????????????????????????????? | | ???????????????????w?????????????????????????????? | | ?????????????????????????????????????????????????? | | ?????????????????????????????????????????????????? | | ?????????????????????????????????????????????????? | | ?????????????????????????????????????????????????? | | ?????????????????????????????????????????????????? | | ?????????????????????????????????????????????????? | | ?????????????????????????????????????????????????? | | ?????????????????????????????????????????????????? | | ?????????????????????????????????????????????????? | | ?????????????????????????????????????????????????? | | ?????????????????????????????????????????????????? | +----------------------------------------------------+ Best States ------------- Heat Dissipation 31 Energy Generation 10 Energy Capacity 1600 Matter Stores 306 Matter Capacity 400 Sight Range 16 Terrain Scan Density 10 Additional Mass Support 6 Armor Coverage 150 Evasion (%) 63 Targeting Accuracy 6 Salvage Targeting 1 Item Schematics ----------------- None Robot Schematics ------------------ None Fabricated ------------ Nothing Alien Tech Used ----------------- None Achievements -------------- Librarian Challenges ------------ None Game ------ Seed MissileBehemothAutobeam Manual? 0 Play Time 00:51:51 Cumulative 4.7 hours Start 2024.06.13 @ 13:54:14 End 2024.06.13 @ 14:53:18 Sessions 1 Manual Loads 0 Difficulty Rogue Special Mode None Game No. 6 Rogue 6 Adventurer 0 Explorer 0 Win Type - Total 0 Types 0/0/0/0/0/0/0/0/0 Lore% 13 Gallery% 10 Achievement% 9 Wizard Run 0 Options --------- Layout 1 ASCII 0 Keyboard 1 Movement Arrows Keybinds 0 Fullscreen 1 Font 24/Smallcaps Map View 50x35 Zoom Use 0% Tactical HUD 0 Map Filters NONE Filters NONE Steam 1 RUN: 3fc8477e-b550-422a-9a70-fa21b308b935